fUST/lending_fUST_20250422
["ID","MTS","AMOUNT","RATE_DAILY","PERIOD"]
[358605312,1745305847683,-500.0,0.00021917,2]
[358605313,1745305847693,-500.0,0.00021917,2]
[358605314,1745305847704,-500.0,0.00021917,2]
[358605315,1745305847714,-500.0,0.00021917,2]
[358605316,1745305847723,-500.0,0.00021917,2]
[358605317,1745305847734,-500.0,0.00021917,2]
[358605318,1745305847744,-500.0,0.00021917,2]
[358605319,1745305847754,-500.0,0.00021917,2]
[358605320,1745305847763,-500.0,0.00021917,2]
[358605321,1745305847773,-500.0,0.00021917,2]
[358605322,1745305847783,-504.08222012,0.00021917,2]
[358605323,1745305847792,-500.0,0.00021917,2]
[358605324,1745305847802,-500.0,0.00021917,2]
[358605325,1745305847811,-500.0,0.00021917,2]
[358605326,1745305847821,-500.0,0.00021917,2]
[358605327,1745305847831,-500.0,0.00021917,2]
[358605328,1745305847841,-500.0,0.00021917,2]
[358605329,1745305847850,-500.0,0.00021917,2]
[358605330,1745305847860,-500.0,0.00021917,2]
[358605331,1745305847869,-500.0,0.00021917,2]
[358605332,1745305847878,-507.29333237,0.00021917,2]
[358605333,1745305847887,-500.0,0.00021917,2]
[358605334,1745305847896,-469.7737348,0.00021917,2]
[358605335,1745305847906,-370.87206751,0.00021917,2]
[358605336,1745305847915,-500.0,0.00021917,2]
[358605337,1745305847924,-500.0,0.00021917,2]
[358605338,1745305847933,-658.08,0.00021917,2]
[358605339,1745305847943,-500.0,0.00021917,2]
[358605340,1745305847952,-109.97472811,0.00021917,2]
[358605342,1745305887738,594.37216903,0.00019817,2]
[358605367,1745306188913,396.24811269,0.00019817,2]
[358605374,1745306490075,264.16540846,0.00019817,2]
[358605381,1745306926786,150.999999,0.0002,120]
[358605382,1745306927560,1000.0,0.00027,30]
[358605386,1745306981405,199.37,0.000199,2]
[358605450,1745307038155,-824.65013089,0.00020899,2]
[358605451,1745307038165,-300.0,0.00021515,2]
[358605452,1745307038175,-940.15906501,0.00021515,2]
[358605453,1745307038187,-259.84093499,0.00021515,2]
[358605454,1745307038196,-129.00864447,0.00021516,2]
[358605455,1745307038208,-875.44453164,0.00021516,2]
[358605456,1745307038218,-316.84695326,0.00021516,2]
[358605457,1745307038227,-500.0,0.00021516,2]
[358605458,1745307038236,-184.74940702,0.00021516,2]
[358605459,1745307038246,-334.20931721,0.00021516,2]
[358605460,1745307038255,-500.0,0.00021516,2]
[358605461,1745307038264,-500.0,0.00021516,2]
[358605462,1745307038274,-249.79144741,0.00021516,2]
[358605463,1745307038283,-160.41155837,0.00021516,2]
[358605464,1745307038292,-175798.46165562,0.00021517,2]
[358605465,1745307038304,-51508.69279982,0.00021517,2]
[358605466,1745307038332,-7980.81612359,0.00021517,2]
[358605473,1745307040404,-1573.32816884,0.00021517,2]
[358605474,1745307040436,-7435.41270457,0.00021517,2]
[358605484,1745307043128,-2061.52148577,0.00021517,2]
[358605488,1745307045987,-61795.54595935,0.00021517,2]
[358605489,1745307046000,-700.59853048,0.00021517,2]
[358605490,1745307046016,-429.718188,0.00021517,2]
[358605491,1745307092425,258.36601668,0.00019417,2]
[358605501,1745307393488,172.24401112,0.00019417,2]
[358605502,1745307418093,155.0,0.00019,14]
[358605505,1745307617598,173.67,0.0002,2]
[358605506,1745307618647,173.67,0.0002,2]
[358605507,1745307619053,173.67,0.0002,2]
[358605508,1745307619510,173.67,0.0002,2]
[358605509,1745307619877,173.70440806,0.0002,2]
[358605530,1745308232151,-320.47036589,0.00020672,2]
[358605531,1745308232161,-789.50283168,0.00020772,2]
[358605532,1745308232216,-410.49716832,0.00020772,2]
[358605533,1745308232228,-6936.8989949,0.00020773,2]
[358605534,1745308232240,-1015.8069488,0.00020798,2]
[358605535,1745308232251,-203.224285,0.00020891,2]
[358605536,1745308232261,-298.30937876,0.00021144,2]
[358605537,1745308232272,-300.0,0.00021711,2]
[358605538,1745308232282,-484.28277703,0.00021716,2]
[358605539,1745308232293,-484.28277701,0.00021741,2]
[358605540,1745308232303,-484.28277701,0.00021767,2]
[358605541,1745308232313,-484.28277701,0.00021792,2]
[358605542,1745308232323,-36622.03082368,0.00021792,2]
[358605555,1745308238297,-2101.11184565,0.00021792,2]
[358605556,1745308238311,-7390.75415426,0.00021792,2]
[358605557,1745308238437,-3886.10317641,0.00021792,2]
[358605558,1745308238447,-169.67,0.00021802,2]
[358605559,1745308238458,-151.0,0.00021803,2]
[358605560,1745308238468,-207.4,0.00021803,2]
[358605561,1745308238478,-500.0,0.00021811,2]
[358605562,1745308238488,-500.0,0.00021811,2]
[358605563,1745308238499,-500.0,0.00021811,2]
[358605564,1745308238508,-500.0,0.00021811,2]
[358605565,1745308238518,-500.0,0.00021811,2]
[358605566,1745308238527,-500.0,0.00021811,2]
[358605567,1745308238538,-500.0,0.00021811,2]
[358605568,1745308238547,-500.0,0.00021811,2]
[358605570,1745308238558,-500.0,0.00021811,2]
[358605572,1745308238568,-500.0,0.00021811,2]
[358605573,1745308238578,-500.0,0.00021811,2]
[358605574,1745308238588,-500.0,0.00021811,2]
[358605575,1745308238597,-500.0,0.00021811,2]
[358605576,1745308238607,-500.0,0.00021811,2]
[358605577,1745308238616,-326.65555129,0.00021811,2]
[358605578,1745308238626,-163.51959751,0.00021811,2]
[358605579,1745308238635,-500.0,0.00021811,2]
[358605580,1745308238645,-430.0,0.00021811,2]
[358605581,1745308238654,-500.0,0.00021811,2]
[358605582,1745308238664,-500.0,0.00021811,2]
[358605583,1745308238674,-500.0,0.00021811,2]
[358605584,1745308238683,-500.0,0.00021811,2]
[358605585,1745308238694,-500.0,0.00021811,2]
[358605586,1745308238703,-500.0,0.00021811,2]
[358605587,1745308238714,-500.0,0.00021811,2]
[358605588,1745308238724,-500.0,0.00021811,2]
[358605589,1745308238734,-500.0,0.00021811,2]
[358605590,1745308238744,-500.0,0.00021811,2]
[358605591,1745308238755,-448.95800508,0.00021811,2]
[358605592,1745308238764,-500.0,0.00021811,2]
[358605593,1745308238775,-500.0,0.00021811,2]
[358605594,1745308238785,-500.0,0.00021811,2]
[358605595,1745308238794,-500.0,0.00021811,2]
[358605596,1745308238804,-500.0,0.00021811,2]
[358605597,1745308238813,-500.0,0.00021811,2]
[358605598,1745308238823,-500.0,0.00021811,2]
[358605599,1745308238832,-500.0,0.00021811,2]
[358605600,1745308238842,-500.0,0.00021811,2]
[358605601,1745308238852,-500.0,0.00021811,2]
[358605602,1745308238861,-500.0,0.00021811,2]
[358605603,1745308238871,-500.0,0.00021811,2]
[358605604,1745308238881,-500.0,0.00021811,2]
[358605605,1745308238891,-500.0,0.00021811,2]
[358605606,1745308238900,-500.0,0.00021811,2]
[358605607,1745308238911,-500.0,0.00021811,2]
[358605608,1745308238921,-500.0,0.00021811,2]
[358605609,1745308238930,-500.0,0.00021811,2]
[358605610,1745308238941,-39854.7154545,0.00021812,2]
[358605611,1745308239102,-500.0,0.00021815,2]
[358605612,1745308239112,-500.0,0.00021815,2]
[358605613,1745308239122,-500.0,0.00021815,2]
[358605614,1745308239132,-500.0,0.00021815,2]
[358605615,1745308239142,-270.22097286,0.00021815,2]
[358605616,1745308239152,-288.93197839,0.00021815,2]
[358605617,1745308239162,-500.0,0.00021815,2]
[358605618,1745308239172,-628.34726756,0.00021815,2]
[358605619,1745308239181,-160.0,0.00021816,3]
[358605620,1745308239191,-5357.53161291,0.00021816,3]
[358605621,1745308239201,-729.16666667,0.00021816,3]
[358605622,1745308239210,-160.0,0.00021816,3]
[358605623,1745308239220,-121102.9642633,0.00021816,2]
[358605624,1745308239233,-18599.82150834,0.00021816,3]
[358605625,1745308239243,-250770.08265516,0.00021816,2]
[358605626,1745308239257,-411.43124799,0.00021816,2]
[358605627,1745308239269,-11138.11514867,0.00021816,2]
[358605628,1745308239281,-107680.37094818,0.00021816,2]
[358605629,1745308239291,-484.28277701,0.00021817,2]
[358605630,1745308239301,-151.0,0.000219,3]
[358605631,1745308239313,-400.000001,0.00021917,2]
[358605632,1745308239323,-174.827706,0.00021917,2]
[358605633,1745308239333,-151.0,0.00021917,2]
[358605634,1745308239343,-151.0,0.00021917,2]
[358605635,1745308239354,-151.0,0.00021917,2]
[358605636,1745308239363,-151.0,0.00021917,2]
[358605637,1745308239373,-151.0,0.00021917,2]
[358605638,1745308239383,-151.0,0.00021917,2]
[358605639,1745308239393,-151.0,0.00021917,2]
[358605640,1745308239402,-165.514806,0.00021917,2]
[358605641,1745308239413,-151.0,0.00021917,2]
[358605642,1745308239422,-151.0,0.00021917,2]
[358605643,1745308239433,-500.0,0.00021917,2]
[358605644,1745308239443,-151.0,0.00021917,2]
[358605645,1745308239453,-151.0,0.00021917,2]
[358605646,1745308239463,-151.0,0.00021917,2]
[358605647,1745308239472,-151.0,0.00021917,2]
[358605648,1745308239482,-500.0,0.00021917,2]
[358605649,1745308239493,-500.0,0.00021917,2]
[358605650,1745308239503,-151.0,0.00021917,2]
[358605651,1745308239514,-151.0,0.00021917,2]
[358605652,1745308239524,-537.55826873,0.00021917,2]
[358605653,1745308239534,-500.0,0.00021917,2]
[358605654,1745308239545,-151.0,0.00021917,2]
[358605655,1745308239555,-197.513673,0.00021917,2]
[358605656,1745308239565,-500.65826976,0.00021917,2]
[358605657,1745308239580,-500.0,0.00021917,2]
[358605658,1745308239590,-151.0,0.00021917,2]
[358605659,1745308239600,-500.82544185,0.00021917,2]
[358605661,1745308239611,-446.24409386,0.00021917,2]
[358605662,1745308239621,-500.0,0.00021917,2]
[358605664,1745308239632,-500.0,0.00021917,2]
[358605665,1745308239642,-500.0,0.00021917,2]
[358605666,1745308239652,-500.0,0.00021917,2]
[358605667,1745308239662,-500.0,0.00021917,2]
[358605668,1745308239672,-500.0,0.00021917,2]
[358605669,1745308239683,-500.54663892,0.00021917,2]
[358605670,1745308239693,-500.0,0.00021917,2]
[358605671,1745308239704,-151.0,0.00021917,2]
[358605672,1745308239714,-574.25948825,0.00021917,2]
[358605673,1745308239724,-502.82191151,0.00021917,2]
[358605674,1745308239734,-151.0,0.00021917,2]
[358605675,1745308239745,-284.776816,0.00021917,2]
[358605676,1745308239756,-151.0,0.00021917,2]
[358605677,1745308239766,-151.0,0.00021917,2]
[358605678,1745308239776,-151.0,0.00021917,2]
[358605679,1745308239787,-151.0,0.00021917,2]
[358605680,1745308239798,-151.0,0.00021917,2]
[358605681,1745308239809,-277.642007,0.00021917,2]
[358605682,1745308239819,-514.91713716,0.00021917,2]
[358605683,1745308239829,-433.37118254,0.00021917,2]
[358605685,1745308239840,-500.0,0.00021917,2]
[358605687,1745308239850,-500.0,0.00021917,2]
[358605688,1745308239860,-500.0,0.00021917,2]
[358605689,1745308239871,-500.0,0.00021917,2]
[358605690,1745308239882,-508.78431858,0.00021917,2]
[358605691,1745308239892,-500.0,0.00021917,2]
[358605692,1745308239902,-556.00305879,0.00021917,2]
[358605693,1745308239913,-500.0,0.00021917,2]
[358605694,1745308239924,-501.77784407,0.00021917,2]
[358605695,1745308239934,-500.0,0.00021917,2]
[358605696,1745308239945,-503.35884048,0.00021917,2]
[358605697,1745308239955,-501.63691401,0.00021917,2]
[358605698,1745308239965,-505.02602121,0.00021917,2]
[358605699,1745308239975,-291.850169,0.00021917,2]
[358605700,1745308239986,-291.850169,0.00021917,2]
[358605701,1745308239997,-291.850169,0.00021917,2]
[358605702,1745308240007,-197.95335,0.00021917,2]
[358605703,1745308240017,-197.95335,0.00021917,2]
[358605704,1745308240027,-197.95335,0.00021917,2]
[358605705,1745308240037,-500.0,0.00021917,2]
[358605706,1745308240048,-291.850169,0.00021917,2]
[358605707,1745308240058,-291.850169,0.00021917,2]
[358605708,1745308240069,-291.850169,0.00021917,2]
[358605709,1745308240079,-197.95335,0.00021917,2]
[358605710,1745308240089,-501.65125686,0.00021917,2]
[358605712,1745308240099,-197.95335,0.00021917,2]
[358605713,1745308240109,-197.95335,0.00021917,2]
[358605714,1745308240119,-151.0,0.00021917,2]
[358605715,1745308240129,-151.0,0.00021917,2]
[358605716,1745308240140,-500.0,0.00021917,2]
[358605717,1745308240150,-505.54069586,0.00021917,2]
[358605718,1745308240160,-212.772043,0.00021917,2]
[358605719,1745308240171,-503.8356674,0.00021917,2]
[358605720,1745308240181,-500.0,0.00021917,2]
[358605721,1745308240192,-500.0,0.00021917,2]
[358605722,1745308240206,-500.0,0.00021917,2]
[358605723,1745308240221,-500.0,0.00021917,2]
[358605724,1745308240234,-500.0,0.00021917,2]
[358605725,1745308240246,-504.54844696,0.00021917,2]
[358605726,1745308240257,-500.0,0.00021917,2]
[358605727,1745308240267,-502.67088859,0.00021917,2]
[358605728,1745308240278,-500.0,0.00021917,2]
[358605729,1745308240288,-502.30571358,0.00021917,2]
[358605730,1745308240382,-500.0,0.00021917,2]
[358605731,1745308240393,-500.0,0.00021917,2]
[358605732,1745308240403,-506.27016928,0.00021917,2]
[358605733,1745308240413,-502.64797256,0.00021917,2]
[358605734,1745308240423,-500.0,0.00021917,2]
[358605735,1745308240433,-500.0,0.00021917,2]
[358605736,1745308240442,-501.51697049,0.00021917,2]
[358605737,1745308240453,-151.0,0.00021917,2]
[358605738,1745308240462,-244.13751357,0.00021917,2]
[358605739,1745308240472,-151.0,0.00021917,2]
[358605740,1745308240483,-175.819356,0.00021917,2]
[358605741,1745308240492,-501.65465623,0.00021917,2]
[358605742,1745308240502,-502.27706003,0.00021917,2]
[358605743,1745308240512,-500.0,0.00021917,2]
[358605744,1745308240522,-501.93523203,0.00021917,2]
[358605745,1745308240531,-500.0,0.00021917,2]
[358605746,1745308240541,-500.0,0.00021917,2]
[358605747,1745308240551,-502.57807293,0.00021917,2]
[358605748,1745308240561,-500.0,0.00021917,2]
[358605749,1745308240571,-500.0,0.00021917,2]
[358605751,1745308240581,-505.91198158,0.00021917,2]
[358605752,1745308240590,-500.0,0.00021917,2]
[358605753,1745308240600,-500.0,0.00021917,2]
[358605754,1745308240609,-500.0,0.00021917,2]
[358605755,1745308240619,-500.0,0.00021917,2]
[358605756,1745308240628,-500.0,0.00021917,2]
[358605757,1745308240638,-500.0,0.00021917,2]
[358605758,1745308240648,-500.0,0.00021917,2]
[358605759,1745308240658,-500.0,0.00021917,2]
[358605760,1745308240667,-500.0,0.00021917,2]
[358605761,1745308240678,-500.0,0.00021917,2]
[358605762,1745308240689,-500.0,0.00021917,2]
[358605763,1745308240699,-500.0,0.00021917,2]
[358605764,1745308240709,-500.0,0.00021917,2]
[358605765,1745308240720,-500.0,0.00021917,2]
[358605766,1745308240730,-629.66162781,0.00021917,2]
[358605767,1745308240741,-516.09209659,0.00021917,2]
[358605768,1745308240753,-500.0,0.00021917,2]
[358605769,1745308240762,-372.76242901,0.00021917,2]
[358605770,1745308240772,-501.9202088,0.00021917,2]
[358605771,1745308240782,-151.0,0.00021917,2]
[358605772,1745308240791,-503.47947882,0.00021917,2]
[358605773,1745308240801,-500.0,0.00021917,2]
[358605774,1745308240811,-503.79091632,0.00021917,2]
[358605775,1745308240820,-502.58821979,0.00021917,2]
[358605776,1745308240830,-505.20018493,0.00021917,2]
[358605777,1745308240840,-501.08013338,0.00021917,2]
[358605778,1745308240850,-500.0,0.00021917,2]
[358605779,1745308240860,-502.01298322,0.00021917,2]
[358605780,1745308240870,-506.65457999,0.00021917,2]
[358605781,1745308240880,-502.47844044,0.00021917,2]
[358605782,1745308240890,-500.0,0.00021917,2]
[358605783,1745308240900,-500.0,0.00021917,2]
[358605784,1745308240910,-503.02696017,0.00021917,2]
[358605785,1745308240919,-502.36041253,0.00021917,2]
[358605786,1745308240929,-500.0,0.00021917,2]
[358605787,1745308240939,-500.0,0.00021917,2]
[358605788,1745308240948,-502.25421861,0.00021917,2]
[358605789,1745308240958,-500.0,0.00021917,2]
[358605790,1745308240969,-501.13022567,0.00021917,2]
[358605791,1745308240980,-500.0,0.00021917,2]
[358605792,1745308240990,-500.0,0.00021917,2]
[358605793,1745308241000,-503.07774411,0.00021917,2]
[358605794,1745308241010,-500.0,0.00021917,2]
[358605795,1745308241020,-500.0,0.00021917,2]
[358605796,1745308241031,-500.0,0.00021917,2]
[358605797,1745308241040,-500.0,0.00021917,2]
[358605798,1745308241050,-500.0,0.00021917,2]
[358605799,1745308241060,-252.174893,0.00021917,2]
[358605800,1745308241069,-252.174893,0.00021917,2]
[358605801,1745308241090,-500.0,0.00021917,2]
[358605802,1745308241102,-504.19409519,0.00021917,2]
[358605803,1745308241113,-252.174893,0.00021917,2]
[358605804,1745308241123,-252.174893,0.00021917,2]
[358605805,1745308241134,-502.53201316,0.00021917,2]
[358605806,1745308241144,-501.88088184,0.00021917,2]
[358605807,1745308241154,-500.0,0.00021917,2]
[358605808,1745308241164,-500.0,0.00021917,2]
[358605809,1745308241174,-500.0,0.00021917,2]
[358605810,1745308241185,-500.0,0.00021917,2]
[358605811,1745308241195,-501.94659805,0.00021917,2]
[358605812,1745308241206,-500.0,0.00021917,2]
[358605813,1745308241217,-500.0,0.00021917,2]
[358605814,1745308241232,-500.0,0.00021917,2]
[358605815,1745308241242,-500.9550273,0.00021917,2]
[358605816,1745308241253,-500.0,0.00021917,2]
[358605817,1745308241263,-500.0,0.00021917,2]
[358605818,1745308241273,-500.0,0.00021917,2]
[358605819,1745308241284,-500.0,0.00021917,2]
[358605820,1745308241294,-500.0,0.00021917,2]
[358605821,1745308241308,-500.0,0.00021917,2]
[358605822,1745308241318,-500.0,0.00021917,2]
[358605823,1745308241329,-500.0,0.00021917,2]
[358605824,1745308241339,-500.0,0.00021917,2]
[358605825,1745308241349,-500.0,0.00021917,2]
[358605826,1745308241359,-500.0,0.00021917,2]
[358605827,1745308241370,-500.0,0.00021917,2]
[358605828,1745308241382,-500.0,0.00021917,2]
[358605829,1745308241392,-500.0,0.00021917,2]
[358605830,1745308241403,-500.0,0.00021917,2]
[358605831,1745308241413,-500.0,0.00021917,2]
[358605832,1745308241423,-500.0,0.00021917,2]
[358605833,1745308241434,-502.22130498,0.00021917,2]
[358605834,1745308241444,-500.0,0.00021917,2]
[358605835,1745308241455,-500.0,0.00021917,2]
[358605836,1745308241467,-151.0,0.00021917,2]
[358605837,1745308241571,-151.0,0.00021917,2]
[358605838,1745308241589,-151.0,0.00021917,2]
[358605839,1745308241599,-500.0,0.00021917,2]
[358605840,1745308241611,-151.0,0.00021917,2]
[358605841,1745308241621,-151.0,0.00021917,2]
[358605842,1745308241631,-151.0,0.00021917,2]
[358605843,1745308241641,-500.0,0.00021917,2]
[358605844,1745308241651,-500.0,0.00021917,2]
[358605845,1745308241666,-500.89204275,0.00021917,2]
[358605846,1745308241676,-500.0,0.00021917,2]
[358605847,1745308241686,-500.0,0.00021917,2]
[358605848,1745308241696,-500.0,0.00021917,2]
[358605849,1745308241706,-500.0,0.00021917,2]
[358605850,1745308241718,-500.0,0.00021917,2]
[358605851,1745308241728,-500.0,0.00021917,2]
[358605852,1745308241747,-500.0,0.00021917,2]
[358605853,1745308241761,-500.0,0.00021917,2]
[358605854,1745308241772,-500.0,0.00021917,2]
[358605855,1745308241783,-500.0,0.00021917,2]
[358605856,1745308241793,-500.0,0.00021917,2]
[358605857,1745308241804,-500.0,0.00021917,2]
[358605858,1745308241814,-500.0,0.00021917,2]
[358605859,1745308241824,-151.0,0.00021917,2]
[358605860,1745308241835,-151.0,0.00021917,2]
[358605861,1745308241844,-500.0,0.00021917,2]
[358605862,1745308241854,-154.035134,0.00021917,2]
[358605863,1745308241865,-500.0,0.00021917,2]
[358605864,1745308241875,-500.0,0.00021917,2]
[358605865,1745308241885,-500.47103987,0.00021917,2]
[358605866,1745308241895,-500.0,0.00021917,2]
[358605867,1745308241905,-605.72,0.00021917,2]
[358605868,1745308241915,-1209.45274,0.00021917,2]
[358605869,1745308241925,-1209.45274,0.00021917,2]
[358605870,1745308241935,-1209.45274,0.00021917,2]
[358605871,1745308241946,-501.05278398,0.00021917,2]
[358605872,1745308241957,-500.0,0.00021917,2]
[358605873,1745308241967,-1209.45274,0.00021917,2]
[358605874,1745308241977,-1209.45274,0.00021917,2]
[358605875,1745308241986,-1209.45274,0.00021917,2]
[358605876,1745308241996,-281.628414,0.00021917,2]
[358605877,1745308242006,-281.628414,0.00021917,2]
[358605878,1745308242016,-500.0,0.00021917,2]
[358605879,1745308242026,-281.628414,0.00021917,2]
[358605880,1745308242036,-281.628414,0.00021917,2]
[358605881,1745308242046,-495.89962436,0.00021917,2]
[358605882,1745308242056,-432.62457983,0.00021917,2]
[358605883,1745308242066,-500.0,0.00021917,2]
[358605884,1745308242076,-500.0,0.00021917,2]
[358605885,1745308242086,-500.0,0.00021917,2]
[358605886,1745308242096,-500.0,0.00021917,2]
[358605887,1745308242106,-500.0,0.00021917,2]
[358605888,1745308242116,-500.9789049,0.00021917,2]
[358605889,1745308242127,-500.0,0.00021917,2]
[358605890,1745308242137,-500.0,0.00021917,2]
[358605891,1745308242147,-151.0,0.00021917,2]
[358605892,1745308242157,-151.0,0.00021917,2]
[358605893,1745308242167,-151.0,0.00021917,2]
[358605894,1745308242177,-500.0,0.00021917,2]
[358605895,1745308242187,-500.0,0.00021917,2]
[358605896,1745308242197,-500.38854713,0.00021917,2]
[358605897,1745308242208,-151.0,0.00021917,2]
[358605898,1745308242218,-151.0,0.00021917,2]
[358605899,1745308242229,-151.0,0.00021917,2]
[358605900,1745308242241,-500.72213027,0.00021917,2]
[358605901,1745308242252,-500.0,0.00021917,2]
[358605902,1745308242262,-500.0,0.00021917,2]
[358605903,1745308242272,-510.94224512,0.00021917,2]
[358605904,1745308242282,-151.0,0.00021917,2]
[358605905,1745308242294,-500.0,0.00021917,2]
[358605906,1745308242304,-500.0,0.00021917,2]
[358605907,1745308242315,-151.0,0.00021917,2]
[358605908,1745308242326,-151.0,0.00021917,2]
[358605909,1745308242336,-500.0,0.00021917,2]
[358605910,1745308242346,-500.0,0.00021917,2]
[358605911,1745308242356,-500.0,0.00021917,2]
[358605912,1745308242366,-500.54584082,0.00021917,2]
[358605913,1745308242377,-500.0,0.00021917,2]
[358605914,1745308242387,-500.0,0.00021917,2]
[358605915,1745308242398,-500.0,0.00021917,2]
[358605916,1745308242408,-500.0,0.00021917,2]
[358605917,1745308242419,-503.84499358,0.00021917,2]
[358605918,1745308242430,-500.0,0.00021917,2]
[358605919,1745308242441,-500.0,0.00021917,2]
[358605920,1745308242453,-500.0,0.00021917,2]
[358605921,1745308242463,-500.0,0.00021917,2]
[358605922,1745308242475,-500.0,0.00021917,2]
[358605923,1745308242490,-500.0,0.00021917,2]
[358605924,1745308242505,-194.14500441,0.00021917,2]
[358605925,1745308242516,-500.0,0.00021917,2]
[358605926,1745308242528,-501.00251444,0.00021917,2]
[358605927,1745308242538,-500.0,0.00021917,2]
[358605928,1745308242548,-500.0,0.00021917,2]
[358605929,1745308242558,-500.0,0.00021917,2]
[358605930,1745308242569,-500.0,0.00021917,2]
[358605932,1745308242579,-151.0,0.00021917,2]
[358605933,1745308242588,-151.0,0.00021917,2]
[358605934,1745308242598,-151.0,0.00021917,2]
[358605935,1745308242608,-500.0,0.00021917,2]
[358605939,1745308242687,-501.6392945,0.00021917,2]
[358605940,1745308242698,-500.0,0.00021917,2]
[358605941,1745308242708,-500.0,0.00021917,2]
[358605942,1745308242719,-500.0,0.00021917,2]
[358605943,1745308242729,-549.37,0.00021917,2]
[358605944,1745308242739,-511.40079874,0.00021917,2]
[358605945,1745308242749,-151.0,0.00021917,2]
[358605947,1745308242760,-500.0,0.00021917,2]
[358605949,1745308242770,-151.0,0.00021917,2]
[358605951,1745308242780,-502.40067337,0.00021917,2]
[358605952,1745308242790,-155.314413,0.00021917,2]
[358605953,1745308242800,-501.09037754,0.00021917,2]
[358605954,1745308242810,-500.0,0.00021917,2]
[358605955,1745308242820,-539.06370772,0.00021917,2]
[358605956,1745308242830,-503.20572733,0.00021917,2]
[358605957,1745308242839,-151.0,0.00021917,2]
[358605958,1745308242849,-501.15513965,0.00021917,2]
[358605960,1745308242860,-500.0,0.00021917,2]
[358605961,1745308242869,-500.85644021,0.00021917,2]
[358605962,1745308242879,-500.0,0.00021917,2]
[358605963,1745308242889,-510.26611094,0.00021917,2]
[358605965,1745308242900,-500.0,0.00021917,2]
[358605966,1745308242909,-507.26804273,0.00021917,2]
[358605967,1745308242919,-500.0,0.00021917,2]
[358605968,1745308242930,-500.0,0.00021917,2]
[358605969,1745308242939,-500.0,0.00021917,2]
[358605970,1745308242950,-500.0,0.00021917,2]
[358605972,1745308242962,-500.80780105,0.00021917,2]
[358605973,1745308242972,-501.14443384,0.00021917,2]
[358605975,1745308242982,-500.0,0.00021917,2]
[358605976,1745308242991,-502.8591018,0.00021917,2]
[358605977,1745308243001,-504.53398228,0.00021917,2]
[358605978,1745308243011,-504.59063616,0.00021917,2]
[358605979,1745308243021,-500.0,0.00021917,2]
[358605980,1745308243031,-500.0,0.00021917,2]
[358605981,1745308243040,-500.0,0.00021917,2]
[358605982,1745308243050,-500.36119808,0.00021917,2]
[358605983,1745308243060,-500.0,0.00021917,2]
[358605984,1745308243070,-500.0,0.00021917,2]
[358605985,1745308243080,-1267.44,0.00021917,2]
[358605986,1745308243090,-424.38447612,0.00021917,2]
[358605987,1745308243100,-500.0,0.00021917,2]
[358605988,1745308243111,-500.0,0.00021917,2]
[358605989,1745308243121,-501.62931202,0.00021917,2]
[358605990,1745308243131,-500.0,0.00021917,2]
[358605991,1745308243149,-564.19,0.00021917,2]
[358605992,1745308243172,-500.0,0.00021917,2]
[358605993,1745308243193,-500.0,0.00021917,2]
[358605994,1745308243216,-500.0,0.00021917,2]